bitfinex-derivatives/quotes_BNBF0:USTF0_20250221
["timestamp","ask_amount","ask_price","bid_price","bid_amount"]
[1740134722494,1.09295375,661.92,661.0,0.30257186]
[1740134722699,1.09295375,661.91,661.0,0.30257186]
[1740134722900,1.09295375,661.9,661.0,0.30257186]
[1740134723103,1.09295375,661.89,661.0,0.30257186]
[1740134723401,1.09295375,661.88,661.0,0.30257186]
[1740134723604,0.30205548,662.13,661.0,0.30257186]
[1740134723605,1.09295375,661.87,661.0,0.30257186]
[1740134723902,1.09295375,661.86,661.0,0.30257186]
[1740134724103,1.09295375,661.85,661.0,0.30257186]
[1740134724298,1.09295375,661.84,661.0,0.30257186]
[1740134724498,1.09295375,661.83,661.0,0.30257186]
[1740134724803,1.09295375,661.82,661.0,0.30257186]
[1740134725004,1.09295375,661.81,661.0,0.30257186]
[1740134725200,1.09295375,661.8,661.0,0.30257186]
[1740134725399,1.09295375,661.79,661.0,0.30257186]
[1740134725704,1.09295375,661.78,661.0,0.30257186]
[1740134725903,1.09295375,661.77,661.0,0.30257186]
[1740134726103,1.09295375,661.76,661.0,0.30257186]
[1740134726399,1.09295375,661.75,661.0,0.30257186]
[1740134726605,4.37175017,661.74,661.0,0.30257186]
[1740134726800,1.09295375,661.73,661.0,0.30257186]
[1740134727003,1.09295375,661.72,661.0,0.30257186]
[1740134727201,1.09295375,661.71,661.0,0.30257186]
[1740134727398,1.09295375,661.7,661.0,0.30257186]
[1740134727602,1.09295375,661.69,661.0,0.30257186]
[1740134727802,1.09295375,661.68,661.0,0.30257186]
[1740134728103,1.09295375,661.67,661.0,0.30257186]
[1740134728299,1.09295375,661.66,661.0,0.30257186]
[1740134728504,1.09295375,661.65,661.0,0.30257186]
[1740134728705,1.09295375,661.64,661.0,0.30257186]
[1740134728900,1.09295375,661.63,661.0,0.30257186]
[1740134729102,1.09295375,661.62,661.0,0.30257186]
[1740134729405,1.09295375,661.61,661.0,0.30257186]
[1740134729606,1.09295375,661.6,661.0,0.30257186]
[1740134729802,1.09295375,661.59,661.0,0.30257186]
[1740134730003,1.09295375,661.58,660.76,1.12247119]
[1740134730204,1.09295375,661.57,660.76,1.12247119]
[1740134730400,1.09295375,661.56,660.76,1.12247119]
[1740134730601,1.09295375,661.55,660.69,1.12247119]
[1740134730799,1.09295375,661.54,660.69,1.12247119]
[1740134731003,1.09295375,661.53,660.69,1.12247119]
[1740134731203,1.09295375,661.52,660.69,1.12247119]
[1740134731406,1.09295375,661.51,660.69,1.12247119]
[1740134731607,1.09295375,661.5,660.69,1.12247119]
[1740134731808,1.09295375,661.49,660.69,1.12247119]
[1740134732006,1.09295375,661.48,660.69,1.12247119]
[1740134732205,1.09295375,661.47,660.69,1.12247119]
[1740134732407,1.09295375,661.46,660.69,1.12247119]
[1740134732606,1.09295375,661.45,660.69,1.12247119]
[1740134732805,1.09295375,661.44,660.69,1.12247119]
[1740134733106,1.09295375,661.43,660.69,1.12247119]
[1740134733313,1.09295375,661.42,660.69,1.12247119]
[1740134733507,1.09295375,661.41,660.69,1.12247119]
[1740134733707,1.09295375,661.4,660.45,1.12247119]
[1740134733906,1.09295375,661.39,660.46,0.30281924]
[1740134734106,1.09295375,661.38,660.46,0.30281924]
[1740134734307,1.09295375,661.37,660.46,0.30281924]
[1740134734506,1.09295375,661.36,660.46,0.30281924]
[1740134734711,1.09295375,661.35,660.46,0.30281924]
[1740134735011,1.09295375,661.34,660.46,0.30281924]
[1740134735212,1.09295375,661.33,660.46,0.30281924]
[1740134735413,1.09295375,661.32,660.46,0.30281924]
[1740134735611,1.09295375,661.31,660.46,0.30281924]
[1740134735812,1.09295375,661.3,660.46,0.30281924]
[1740134736008,1.09295375,661.29,660.46,0.30281924]
[1740134736210,1.09104977,661.28,660.46,0.30281924]
[1740134736407,1.09104977,661.27,660.46,0.30281924]
[1740134736609,1.09104977,661.26,660.46,0.30281924]
[1740134736813,2.44719838,662.04,660.46,0.30281924]
[1740134736814,1.09104977,661.25,660.46,0.30281924]
[1740134737009,1.09104977,661.24,660.46,0.30281924]
[1740134737213,1.09104977,661.23,660.46,0.30281924]
[1740134737412,1.09104977,661.22,660.46,0.30281924]
[1740134737610,1.09104977,661.21,660.46,0.30281924]
[1740134737907,2.44719838,662.04,660.46,0.30281924]
[1740134737908,1.09104977,661.2,660.46,0.30281924]
[1740134738109,1.09104977,661.19,660.46,0.30281924]
[1740134738308,1.09104977,661.18,660.46,0.30281924]
[1740134738613,1.09104977,661.17,660.46,0.30281924]
[1740134738809,1.09104977,661.16,660.46,0.30281924]
[1740134739009,1.09104977,661.15,660.46,0.30281924]
[1740134739207,1.09104977,661.14,660.46,0.30281924]
[1740134739409,1.09104977,661.13,660.46,0.30281924]
[1740134739612,1.09104977,661.12,660.46,0.30281924]
[1740134739810,1.09104977,661.11,660.46,0.30281924]
[1740134740009,1.09104977,661.1,660.46,0.30281924]
[1740134740207,1.09104977,661.09,660.46,0.30281924]
[1740134740410,1.09104977,661.08,660.46,0.30281924]
[1740134740613,1.09104977,661.07,660.46,0.30281924]
[1740134740810,1.09104977,661.06,660.46,0.30281924]
[1740134741112,1.09104977,661.05,660.46,0.30281924]
[1740134741317,1.09104977,661.04,660.46,0.30281924]
[1740134741517,1.09104977,661.03,660.46,0.30281924]
[1740134741817,1.09104977,661.02,660.46,0.30281924]
[1740134742112,1.09104977,661.01,660.46,0.30281924]
[1740134742317,1.09104977,661.0,660.46,0.30281924]
[1740134742516,1.09104977,660.99,660.46,0.30281924]
[1740134742717,1.09104977,660.98,660.46,0.30281924]
[1740134742913,1.09104977,660.97,660.46,0.30281924]
[1740134743111,1.09104977,660.96,660.46,0.30281924]
[1740134743414,1.09104977,660.95,660.46,0.30281924]
[1740134743616,1.09104977,660.94,660.46,0.30281924]
[1740134743817,1.09104977,660.93,660.46,0.30281924]
[1740134744017,1.09026265,660.92,660.46,0.30281924]
[1740134744218,1.09026265,660.91,660.46,0.30281924]
[1740134744422,1.09026265,660.9,660.46,0.30281924]
[1740134744620,1.09026265,660.89,660.46,0.30281924]
[1740134744924,1.09026265,660.88,660.46,0.30281924]
[1740134745223,1.09026265,660.87,660.46,0.30281924]
[1740134745423,1.09026265,660.86,660.46,0.30281924]
[1740134745723,1.09026265,660.85,660.46,0.30281924]
[1740134745918,1.09026265,660.84,660.46,0.30281924]
[1740134746122,1.09026265,660.83,660.46,0.30281924]
[1740134746417,1.09026265,660.82,660.46,0.30281924]
[1740134746617,1.09026265,660.81,660.46,0.30281924]
[1740134746923,1.09026265,660.8,660.46,0.30281924]
[1740134747118,1.09026265,660.79,660.46,0.30281924]
[1740134747425,1.09026265,660.78,660.46,0.30281924]
[1740134747624,1.09026265,660.77,660.46,0.30281924]
[1740134747922,1.0898944,660.76,660.46,0.30281924]
[1740134748125,1.0898944,660.75,660.46,0.30281924]
[1740134748322,1.0898944,660.74,660.46,0.30281924]
[1740134748617,1.0898944,660.73,660.46,0.30281924]
[1740134748823,1.0898944,660.72,660.46,0.30281924]
[1740134749016,1.0898944,660.71,660.46,0.30281924]
[1740134749220,1.0898944,660.7,660.46,0.30281924]
[1740134749419,1.0898944,660.69,660.46,0.30281924]
[1740134749615,1.0898944,660.68,660.46,0.30281924]
[1740134749818,1.08946558,660.67,660.46,0.30281924]
[1740134750015,1.435,661.61,660.46,0.30281924]
[1740134750218,1.08945863,661.6,660.46,0.30281924]
[1740134750517,1.08945863,661.59,660.46,0.30281924]
[1740134750718,1.08945863,661.58,660.46,0.30281924]
[1740134750924,1.08945863,661.57,660.46,0.30281924]
[1740134751120,1.08945863,661.56,660.46,0.30281924]
[1740134751321,1.08945863,661.55,660.46,0.30281924]
[1740134751525,1.08945863,661.54,660.46,0.30281924]
[1740134751727,1.08945863,661.53,660.46,0.30281924]
[1740134751926,1.08945863,661.52,660.46,0.30281924]
[1740134752125,1.08945863,661.51,660.46,0.30281924]
[1740134752319,1.08945863,661.5,660.46,0.30281924]
[1740134752523,1.08945863,661.49,660.46,0.30281924]
[1740134752824,1.08945863,661.48,660.46,0.30281924]
[1740134753020,1.08945863,661.47,660.46,0.30281924]
[1740134753225,1.08945863,661.46,660.46,0.30281924]
[1740134753422,1.08945863,661.45,660.46,0.30281924]
[1740134753620,1.08945863,661.44,660.46,0.30281924]
[1740134753825,2.44358454,661.47,660.46,0.30281924]
[1740134753826,1.08945863,661.43,660.46,0.30281924]
[1740134754023,1.08945863,661.42,660.46,0.30281924]
[1740134754328,1.08945863,661.41,660.46,0.30281924]
[1740134754528,1.08945863,661.4,660.51,1.12247119]
[1740134754727,1.08945863,661.39,660.51,1.12247119]
[1740134754927,1.08945863,661.38,660.51,1.12247119]
[1740134755121,1.08945863,661.37,660.51,1.12247119]
[1740134755323,1.08945863,661.36,660.51,1.12247119]
[1740134755521,1.087708,661.35,660.51,1.12247119]
[1740134755726,1.087708,661.34,660.51,1.12247119]
[1740134755924,1.087708,661.33,660.51,1.12247119]
[1740134756127,1.087708,661.32,660.51,1.12247119]
[1740134756328,1.087708,661.31,660.51,1.12247119]
[1740134756527,1.087708,661.3,660.51,1.12247119]
[1740134756728,1.087708,661.29,660.51,1.12247119]
[1740134756931,1.087708,661.28,660.51,1.12247119]
[1740134757231,1.087708,661.27,660.51,1.12247119]
[1740134757427,1.087708,661.26,660.46,0.30281924]
[1740134757627,1.08682628,661.25,660.46,0.30281924]
[1740134757830,1.08682628,661.24,660.46,0.30281924]
[1740134758026,1.08682628,661.23,660.46,0.30281924]
[1740134758231,1.08682628,661.22,660.46,0.30281924]
[1740134758428,1.08682628,661.21,660.46,0.30281924]
[1740134758626,1.08682628,661.2,660.46,0.30281924]
[1740134758829,1.08682628,661.19,660.46,0.30281924]
[1740134759129,1.08682628,661.18,660.46,0.30281924]
[1740134759327,1.08682628,661.17,660.46,0.30281924]
[1740134759532,1.08682628,661.16,660.46,0.30281924]
[1740134759729,1.08682628,661.15,660.46,0.30281924]
[1740134759932,1.57958642,661.28,660.46,0.30281924]
[1740134759933,1.08682628,661.14,660.46,0.30281924]
[1740134760134,1.08682628,661.13,660.46,0.30281924]
[1740134760333,1.08682628,661.12,660.46,0.30281924]
[1740134760532,1.08682628,661.11,660.46,0.30281924]
[1740134760733,1.08682628,661.1,660.46,0.30281924]
[1740134760935,1.08682628,661.09,660.46,0.30281924]
[1740134761135,1.08682628,661.08,660.46,0.30281924]
[1740134761329,1.08682628,661.07,660.46,0.30281924]
[1740134761534,1.08682628,661.06,660.46,0.30281924]
[1740134761734,1.08682628,661.05,660.46,0.30281924]
[1740134761933,1.08682628,661.04,660.46,0.30281924]
[1740134762133,1.08682628,661.03,660.46,0.30281924]
[1740134762334,1.08682628,661.02,660.46,0.30281924]
[1740134762534,1.08682628,661.01,660.46,0.30281924]
[1740134762732,1.08550359,661.0,660.46,0.30281924]
[1740134762937,1.08550359,660.99,660.46,0.30281924]
[1740134763136,1.08550359,660.98,660.46,0.30281924]
[1740134763334,1.08550359,660.97,660.46,0.30281924]
[1740134763537,1.08550359,660.96,660.46,0.30281924]
[1740134763732,1.08550359,660.95,660.46,0.30281924]
[1740134763937,1.08550359,660.94,660.46,0.30281924]
[1740134764136,1.08550359,660.93,660.46,0.30281924]
[1740134764334,1.08550359,660.92,660.46,0.30281924]
[1740134764538,1.08525981,660.91,659.92,1.12247119]
[1740134764737,1.08525981,660.9,659.93,0.30306244]
[1740134765035,1.08525981,660.89,659.93,0.30306244]
[1740134765234,1.08525981,660.88,659.93,0.30306244]
[1740134765434,1.08525981,660.87,659.93,0.30306244]
[1740134765634,1.08525981,660.86,659.93,0.30306244]
[1740134765836,1.08525981,660.85,659.93,0.30306244]
[1740134766041,1.08525981,660.84,659.93,0.30306244]
[1740134766341,1.08525981,660.83,659.93,0.30306244]
[1740134766640,1.57958642,661.28,659.93,0.30306244]
[1740134766641,1.08525981,660.82,659.93,0.30306244]
[1740134766841,1.08525981,660.81,659.93,0.30306244]
[1740134767039,1.08525981,660.8,659.93,0.30306244]
[1740134767235,1.08525981,660.79,659.93,0.30306244]
[1740134767440,1.08525981,660.78,659.93,0.30306244]
[1740134767638,1.08525981,660.77,659.93,0.30306244]
[1740134767838,1.08525981,660.76,659.93,0.30306244]
[1740134768042,1.08525981,660.75,659.93,0.30306244]
[1740134768237,1.08525981,660.74,659.93,0.30306244]
[1740134768438,1.08525981,660.73,659.93,0.30306244]
[1740134768639,1.08525981,660.72,659.93,0.30306244]
[1740134768943,1.08525981,660.71,659.93,0.30306244]
[1740134769143,1.08525981,660.7,659.93,0.30306244]
[1740134769340,1.08525981,660.69,659.93,0.30306244]
[1740134769539,1.08525981,660.68,659.93,0.30306244]
[1740134769742,1.08525981,660.67,659.93,0.30306244]
[1740134769945,1.08525981,660.66,659.93,0.30306244]
[1740134770141,1.08525981,660.65,659.93,0.30306244]
[1740134770341,1.08525981,660.64,659.93,0.30306244]
[1740134770542,1.08525981,660.63,659.93,0.30306244]
[1740134770843,1.08525981,660.62,659.93,0.30306244]
[1740134771040,1.08525981,660.61,659.93,0.30306244]
[1740134771245,1.08525981,660.6,659.93,0.30306244]
[1740134771445,1.08525981,660.59,659.93,0.30306244]
[1740134771640,1.08525981,660.58,659.93,0.30306244]
[1740134771846,1.08525981,660.57,659.93,0.30306244]
[1740134772044,1.08525981,660.56,659.93,0.30306244]
[1740134772244,1.08525981,660.55,659.93,0.30306244]
[1740134772540,1.08525981,660.54,659.93,0.30306244]
[1740134772744,1.08525981,660.53,659.93,0.30306244]
[1740134772944,1.08525981,660.52,659.93,0.30306244]
[1740134773139,1.08525981,660.51,659.93,0.30306244]
[1740134773345,1.08525981,660.5,659.93,0.30306244]
[1740134773547,1.08525981,660.49,659.93,0.30306244]
[1740134773748,1.08525981,660.48,659.93,0.30306244]
[1740134773948,1.08525981,660.47,659.93,0.30306244]
[1740134774144,1.08525981,660.46,659.93,0.30306244]
[1740134774347,1.08525981,660.45,659.93,0.30306244]
[1740134774548,1.08525981,660.44,659.93,0.30306244]
[1740134774746,1.08525981,660.43,659.93,0.30306244]
[1740134774949,1.08525981,660.42,659.93,0.30306244]
[1740134775250,1.08525981,660.41,659.93,0.30306244]
[1740134775452,1.08525981,660.4,659.93,0.30306244]
[1740134775751,1.08525981,660.39,659.93,0.30306244]
[1740134776054,3.25086799,661.86,659.93,0.30306244]
[1740134776248,2.43812883,661.87,659.93,0.30306244]
[1740134776249,0.30218783,661.84,659.93,0.30306244]
[1740134776445,4.61028334,661.83,659.93,0.30306244]
[1740134776650,0.30220153,661.81,659.93,0.30306244]
[1740134776851,4.61028334,661.8,659.93,0.30306244]
[1740134777148,7.04841217,661.79,659.93,0.30306244]
[1740134777354,4.61028334,661.78,659.93,0.30306244]
[1740134777547,4.33246171,661.77,659.93,0.30306244]
[1740134777745,0.30222893,661.75,659.93,0.30306244]
[1740134777948,1.08159372,661.74,659.93,0.30306244]
[1740134778149,0.30224264,661.72,659.93,0.30306244]
[1740134778348,1.08159372,661.71,659.93,0.30306244]
[1740134778552,0.30225634,661.69,659.93,0.30306244]
[1740134778753,1.08159372,661.68,659.93,0.30306244]
[1740134778948,1.08159372,661.67,659.93,0.30306244]
[1740134779253,1.08159372,661.66,659.93,0.30306244]
[1740134779453,1.08159372,661.65,659.93,0.30306244]
[1740134779652,1.08159372,661.64,659.93,0.30306244]
[1740134779948,1.08159372,661.63,659.93,0.30306244]
[1740134780152,1.08159372,661.62,659.93,0.30306244]
[1740134780353,1.38388661,661.61,659.93,0.30306244]
[1740134780554,1.38389118,661.6,659.93,0.30306244]
[1740134780754,1.371,661.65,659.93,0.30306244]
[1740134780755,1.38389574,661.59,659.93,0.30306244]
[1740134780947,1.08159372,661.58,659.93,0.30306244]
[1740134781150,1.08159372,661.57,659.93,0.30306244]
[1740134781347,1.08159372,661.56,659.93,0.30306244]
[1740134781547,0.30230202,661.59,659.93,0.30306244]
[1740134781548,1.38391402,661.55,659.93,0.30306244]
[1740134781746,0.30232487,661.54,659.93,0.30306244]
[1740134782050,1.08147253,661.53,659.93,0.30306244]
[1740134782247,1.08156229,661.52,659.93,0.30306244]
[1740134782451,1.38390087,661.51,659.93,0.30306244]
[1740134782650,1.08156229,661.5,659.93,0.30306244]
[1740134782850,1.08156229,661.49,659.93,0.30306244]
[1740134783051,1.38391459,661.48,659.93,0.30306244]
[1740134783253,1.38391916,661.47,659.93,0.30306244]
[1740134783548,1.38392373,661.46,659.93,0.30306244]
[1740134783752,1.3839283,661.45,659.93,0.30306244]
[1740134783952,1.371,661.65,659.93,0.30306244]
[1740134783953,1.38393287,661.44,659.93,0.30306244]
[1740134784248,1.38393744,661.43,659.93,0.30306244]
[1740134784451,1.38394201,661.42,659.93,0.30306244]
[1740134784652,1.38394659,661.41,659.93,0.30306244]
[1740134784952,1.08156229,661.4,659.93,0.30306244]
[1740134785152,1.08156229,661.39,659.93,0.30306244]
[1740134785347,1.08156229,661.38,659.93,0.30306244]
[1740134785549,1.08156229,661.37,659.93,0.30306244]
[1740134785753,1.08156229,661.36,659.93,0.30306244]
[1740134785951,1.08156229,661.35,659.93,0.30306244]
[1740134786152,1.08156229,661.34,659.93,0.30306244]
[1740134786454,1.08156229,661.33,659.93,0.30306244]
[1740134786648,1.08156229,661.32,659.93,0.30306244]
[1740134786850,1.08156229,661.31,659.93,0.30306244]
[1740134787047,4.32697617,661.3,659.93,0.30306244]
[1740134787257,4.32697617,661.29,659.93,0.30306244]
[1740134787452,1.08156229,661.28,659.93,0.30306244]
[1740134787655,1.08214689,661.27,659.93,0.30306244]
[1740134787855,1.08214689,661.26,659.93,0.30306244]
[1740134788055,1.08214689,661.25,659.93,0.30306244]
[1740134788249,1.08214689,661.24,659.93,0.30306244]
[1740134788449,1.08214689,661.23,659.93,0.30306244]
[1740134788751,1.08214689,661.22,659.93,0.30306244]
[1740134788956,1.08214689,661.21,659.93,0.30306244]
[1740134789155,1.08214689,661.2,659.93,0.30306244]
[1740134789352,1.08214689,661.19,659.93,0.30306244]
[1740134789552,1.08214689,661.18,659.93,0.30306244]
[1740134789755,1.08214689,661.17,659.93,0.30306244]
[1740134790052,1.08214689,661.16,659.93,0.30306244]
[1740134790259,1.08214689,661.15,659.93,0.30306244]
[1740134790556,1.08214689,661.14,659.93,0.30306244]
[1740134790756,1.08214689,661.13,659.93,0.30306244]
[1740134790953,1.08214689,661.12,659.93,0.30306244]
[1740134791152,3.52027572,661.11,659.93,0.30306244]
[1740134791456,1.08214689,661.1,659.93,0.30306244]
[1740134791657,1.08214689,661.09,659.93,0.30306244]
[1740134791852,1.08214689,661.08,659.93,0.30306244]
[1740134792057,1.08214689,661.07,659.93,0.30306244]
[1740134792260,1.08214689,661.06,659.93,0.30306244]
[1740134792459,1.08214689,661.05,659.93,0.30306244]
[1740134792756,1.08214689,661.04,659.93,0.30306244]
[1740134792956,1.08214689,661.03,659.93,0.30306244]
[1740134793158,1.08214689,661.02,659.93,0.30306244]
[1740134793359,1.08214689,661.01,659.93,0.30306244]
[1740134793558,1.08214689,661.0,659.93,0.30306244]
[1740134793753,1.08214689,660.99,659.93,0.30306244]
[1740134793958,1.08214689,660.98,659.93,0.30306244]
[1740134794156,1.08214689,660.97,659.93,0.30306244]
[1740134794357,0.3023843,661.41,659.93,0.30306244]
[1740134794358,1.08214689,660.96,659.93,0.30306244]
[1740134794653,1.08214689,660.95,659.93,0.30306244]
[1740134794960,1.08214689,660.94,659.93,0.30306244]
[1740134795261,1.08214689,660.93,659.93,0.30306244]
[1740134795455,1.08214689,660.92,659.93,0.30306244]
[1740134795657,1.08214689,660.91,659.93,0.30306244]
[1740134795858,1.08214689,660.9,659.93,0.30306244]
[1740134796059,1.08214689,660.89,659.93,0.30306244]
[1740134796256,1.08214689,660.88,659.93,0.30306244]
[1740134796456,0.3023843,661.41,659.93,0.30306244]
[1740134796457,1.08214689,660.87,659.93,0.30306244]
[1740134796656,1.08214689,660.86,659.93,0.30306244]
[1740134796860,1.08214689,660.85,659.93,0.30306244]
[1740134797058,1.08214689,660.84,659.93,0.30306244]
[1740134797258,1.08214689,660.83,659.93,0.30306244]
[1740134797457,1.08214689,660.82,659.93,0.30306244]
[1740134797763,1.08214689,660.81,659.93,0.30306244]
[1740134797960,1.08214689,660.8,659.93,0.30306244]
[1740134798161,1.08214689,660.79,659.93,0.30306244]
[1740134798360,1.08214689,660.78,659.93,0.30306244]
[1740134798557,1.08214689,660.77,659.93,0.30306244]
[1740134798761,1.08214689,660.76,659.93,0.30306244]
[1740134798962,1.08214689,660.75,659.93,0.30306244]
[1740134799162,1.08214689,660.74,659.93,0.30306244]
[1740134799462,1.08214689,660.73,659.93,0.30306244]
[1740134799763,1.08214689,660.72,659.93,0.30306244]
[1740134800064,1.08214689,660.71,660.07,1.12247119]
[1740134800266,1.08214689,660.7,660.08,0.30299357]
[1740134800563,1.08214689,660.69,660.08,0.30299357]
[1740134800758,1.08214689,660.68,660.08,0.30299357]
[1740134800963,1.08214689,660.67,660.08,0.30299357]
[1740134801157,1.08214689,660.66,660.08,0.30299357]
[1740134801356,1.08214689,660.65,660.08,0.30299357]
[1740134801561,1.08214689,660.64,660.08,0.30299357]
[1740134801760,1.08214689,660.63,660.08,0.30299357]
[1740134801961,1.08214689,660.62,660.08,0.30299357]
[1740134802163,1.08214689,660.61,660.08,0.30299357]
[1740134802360,1.08214689,660.6,660.08,0.30299357]
[1740134802662,1.08214689,660.59,660.08,0.30299357]
[1740134802867,1.08214689,660.58,660.08,0.30299357]
[1740134803067,1.08214689,660.57,660.08,0.30299357]
[1740134803268,1.08214689,660.56,660.08,0.30299357]
[1740134803470,1.08214689,660.55,660.08,0.30299357]
[1740134803669,1.08214689,660.54,660.08,0.30299357]
[1740134803865,1.08214689,660.53,660.08,0.30299357]
[1740134804066,1.08214689,660.52,660.08,0.30299357]
[1740134804268,1.08214689,660.51,660.08,0.30299357]
[1740134804565,1.08214689,660.5,660.08,0.30299357]
[1740134804770,1.08214689,660.49,660.08,0.30299357]
[1740134804970,1.08214689,660.48,660.08,0.30299357]
[1740134805173,1.08214689,660.47,660.08,0.30299357]
[1740134805367,1.08214689,660.46,660.08,0.30299357]
[1740134805569,1.08214689,660.45,660.08,0.30299357]
[1740134805767,1.08214689,660.44,660.22,1.12247119]
[1740134805969,1.08214689,660.43,660.22,1.12247119]
[1740134806168,1.08214689,660.42,660.22,1.12247119]
[1740134806370,1.08214689,660.41,660.22,1.12247119]
[1740134806570,3.26213085,661.34,660.22,1.12247119]
[1740134806770,4.34950934,661.33,660.22,1.12247119]
[1740134806970,4.34954443,661.32,660.22,1.12247119]
[1740134807166,4.34954443,661.31,660.22,1.12247119]
[1740134807371,4.34954443,661.3,660.22,1.12247119]
[1740134807568,4.34954443,661.29,660.22,1.12247119]
[1740134807768,4.34954443,661.28,660.22,1.12247119]
[1740134807966,2.43298077,661.33,660.22,1.12247119]
[1740134807967,4.34954443,661.27,660.22,1.12247119]
[1740134808170,4.34954443,661.26,660.22,1.12247119]
[1740134808472,4.34954443,661.25,660.22,1.12247119]
[1740134808665,4.34954443,661.24,660.22,1.12247119]
[1740134808865,4.34954443,661.23,660.22,1.12247119]
[1740134809068,4.34954443,661.22,660.22,1.12247119]
[1740134809269,4.34954443,661.21,660.22,1.12247119]
[1740134809467,4.34954443,661.2,660.22,1.12247119]
[1740134809666,1.08741358,661.19,660.22,1.12247119]
[1740134809875,1.08741358,661.18,660.22,1.12247119]
[1740134810074,1.08741358,661.17,660.22,1.12247119]
[1740134810274,1.08741358,661.16,660.22,1.12247119]
[1740134810576,1.08741358,661.15,660.22,1.12247119]
[1740134810775,2.43298077,661.16,660.08,0.30299357]
[1740134810776,1.08901809,661.14,660.25,1.12247119]
[1740134810975,1.08901809,661.13,660.25,1.12247119]
[1740134811175,2.43298077,661.16,660.25,1.12247119]
[1740134811176,1.08901809,661.12,660.25,1.12247119]
[1740134811475,1.08901809,661.11,660.25,1.12247119]
[1740134811678,1.08901809,661.1,660.25,1.12247119]
[1740134811876,1.08901809,661.09,660.25,1.12247119]
[1740134812080,1.08901809,661.08,660.25,1.12247119]
[1740134812272,1.08901809,661.07,660.25,1.12247119]
[1740134812578,1.08901809,661.06,660.26,0.30291097]
[1740134812772,1.08901809,661.05,660.26,0.30291097]
[1740134812975,1.57986131,661.25,660.26,0.30291097]
[1740134812976,1.08901809,661.04,660.26,0.30291097]
[1740134813177,1.08901809,661.03,660.26,0.30291097]
[1740134813373,1.08901809,661.02,660.26,0.30291097]
[1740134813573,1.08901809,661.01,660.26,0.30291097]
[1740134813775,1.08901809,661.0,660.26,0.30291097]
[1740134813974,1.08901809,660.99,660.26,0.30291097]
[1740134814178,1.08901809,660.98,660.26,0.30291097]
[1740134814378,1.08901809,660.97,660.26,0.30291097]
[1740134814579,1.08901809,660.96,660.26,0.30291097]
[1740134814776,1.08901809,660.95,660.26,0.30291097]
[1740134814982,1.08901809,660.94,660.26,0.30291097]
[1740134815279,1.08901809,660.93,660.26,0.30291097]
[1740134815481,1.08901809,660.92,660.26,0.30291097]
[1740134815680,1.08901809,660.91,660.26,0.30291097]
[1740134815880,1.08901809,660.9,660.26,0.30291097]
[1740134816076,1.08901809,660.89,660.26,0.30291097]
[1740134816278,1.08901809,660.88,660.26,0.30291097]
[1740134816478,1.08901809,660.87,660.26,0.30291097]
[1740134816781,1.08901809,660.86,660.26,0.30291097]
[1740134817082,1.08901809,660.85,660.26,0.30291097]
[1740134817274,1.08901809,660.84,660.26,0.30291097]
[1740134817481,1.08901809,660.83,660.26,0.30291097]
[1740134817679,1.08901809,660.82,660.26,0.30291097]
[1740134817881,1.08901809,660.81,660.26,0.30291097]
[1740134818081,1.08901809,660.8,660.26,0.30291097]
[1740134818281,1.08901809,660.79,660.26,0.30291097]
[1740134818576,1.08901809,660.78,660.26,0.30291097]
[1740134818781,0.3023843,661.41,660.26,0.30291097]
[1740134818782,1.08901809,660.77,660.26,0.30291097]
[1740134818982,1.08901809,660.76,660.26,0.30291097]
[1740134819177,1.08901809,660.75,660.26,0.30291097]
[1740134819484,1.08901809,660.74,660.26,0.30291097]
[1740134819683,1.08901809,660.73,660.26,0.30291097]
[1740134819884,1.08901809,660.72,660.26,0.30291097]
[1740134820085,1.08901809,660.71,660.26,0.30291097]
[1740134820387,1.08901809,660.7,660.26,0.30291097]
[1740134820583,1.08901809,660.69,660.26,0.30291097]
[1740134820778,1.08901809,660.68,660.26,0.30291097]
[1740134820978,1.08901809,660.67,660.26,0.30291097]
[1740134821184,1.08901809,660.66,660.26,0.30291097]
[1740134821382,1.08901809,660.65,660.26,0.30291097]
[1740134821579,1.08901809,660.64,660.26,0.30291097]
[1740134821783,1.08901809,660.63,660.26,0.30291097]
[1740134822083,1.08901809,660.62,660.26,0.30291097]
[1740134822285,1.08901809,660.61,660.26,0.30291097]
[1740134822583,1.08901809,660.6,660.26,0.30291097]
[1740134822784,1.08901809,660.59,660.26,0.30291097]
[1740134822986,1.08901809,660.58,660.26,0.30291097]
[1740134823284,1.08901809,660.57,660.26,0.30291097]
[1740134823484,1.08901809,660.56,660.26,0.30291097]
[1740134823679,1.08901809,660.55,660.26,0.30291097]
[1740134823880,2.44480176,661.87,660.26,0.30291097]
[1740134824185,1.08970118,661.86,660.26,0.30291097]
[1740134824486,1.08970118,661.85,660.26,0.30291097]
[1740134824680,1.08970118,661.84,660.26,0.30291097]
[1740134824885,1.08970118,661.83,660.26,0.30291097]
[1740134825079,1.08970118,661.82,660.26,0.30291097]
[1740134825285,1.08970118,661.81,660.26,0.30291097]
[1740134825482,1.08970118,661.8,660.26,0.30291097]
[1740134825687,1.08970118,661.79,660.26,0.30291097]
[1740134825987,7.10582173,661.78,660.26,0.30291097]
[1740134826188,4.66102454,661.77,660.26,0.30291097]
[1740134826487,1.39192555,661.76,660.26,0.30291097]
[1740134826688,1.39193011,661.75,660.26,0.30291097]